[Event "DLM Youth 2024"]
[Site "Tuebingen"]
[Date "2024.10.03"]
[Round "2"]
[White "Braeutigam, Katerina"]
[Black "Bundan, Edward"]
[Result "1-0"]
[ECO "B20"]
[WhiteElo "2099"]
[BlackElo "1952"]
[Annotator "NA RC"]
[PlyCount "105"]
[EventDate "2024.10.03"]
[EventType "team-swiss"]
[EventRounds "7"]
[EventCountry "GER"]
[SourceTitle "playchess.com"]
[Source "ChessBase"]
[SourceQuality "1"]
[TimeControl "40/5400+30:1800+30"]

1. e4 {[%emt 0:00:03]} c5 {[%emt 0:00:06]} 2. b3 {[%emt 0:00:05]} e6 {[%emt 0:01:37]} 3. Bb2 {[%emt 0:00:34]} d5 {[%emt 0:01:26]} 4. Bb5+ {[%emt 0:03:13]} Bd7 {[%emt 0:00:40]} 5. Bxd7+ {[%emt 0:01:09]} Qxd7 {[%emt 0:01:00]} 6. exd5 {[%emt 0:03:03]} exd5 {[%emt 0:01:19]} 7. Nf3 {[%emt 0:05:11]} Nf6 {[%emt 0:01:36]} 8. Qe2+ {[%emt 0:08:52]} Be7 {[%emt 0:00:53]} 9. Bxf6 {[%emt 0:16:14]} gxf6 {[%emt 0:00:23]} 10. c4 {[%emt 0:12:04]} d4 {[%emt 0:01:35]} 11. d3 {[%emt 0:01:12]} Nc6 {[%emt 0:00:58]} 12. Nh4 {[%emt 0:07:02]} O-O-O {[%emt 0:01:43]} 13. Qh5 {[%emt 0:11:38]} Qe6+ {[%emt 0:01:15]} 14. Kd2 {[%emt 0:03:49]} Bd6 {[%emt 0:04:45]} 15. Re1 {[%emt 0:10:39]} Qd7 {[%emt 0:01:36]} 16. g3 {[%emt 0:01:01]} Ne5 {[%emt 0:03:03]} 17. Nf5 {[%emt 0:07:11]} Bc7 {[%emt 0:01:26]} 18. Kc2 {[%emt 0:01:31]} Rhe8 {[%emt 0:01:44]} 19. Nd2 {[%emt 0:02:05]} Ng6 {[%emt 0:04:56]} 20. Ne4 {[%emt 0:01:24]} Re5 {[%emt 0:04:31]} 21. g4 {[%emt 0:00:25]} Qc6 {[%emt 0:06:35]} 22. Qxh7 {[%emt 0:01:56]} Rf8 {[%emt 0:07:35]} 23. Qg7 {[%emt 0:00:48]} Re6 {[%emt 0:03:35]} 24. h4 {[%emt 0:00:39]} Rfe8 {[%emt 0:01:55]} 25. f3 {[%emt 0:00:39]} Ne5 {[%emt 0:03:13]} 26. Rf1 {[%emt 0:00:22]} b5 {[%emt 0:01:07]} 27. cxb5 {[%emt 0:00:38]} Qxb5 {[%emt 0:00:42]} 28. Rad1 {[%emt 0:00:23]} Qa5 {[%emt 0:01:36]} 29. Kb1 {[%emt 0:00:31]} Ra6 {[%emt 0:00:27]} 30. Rf2 {[%emt 0:00:23]} Qb6 {[%emt 0:07:57]} 31. Rc2 {[%emt 0:00:34]} c4 {[%emt 0:00:43]} 32. f4 {[%emt 0:00:29]} cxb3 {[%emt 0:01:05]} 33. Rb2 {[%emt 0:00:38]} Nxd3 {[%emt 0:04:21]} 34. Rxb3 {[%emt 0:00:25]} Qa5 {[%emt 0:00:44]} 35. Ned6+ {[%emt 0:00:30]} Bxd6 {[%emt 0:00:23]} 36. Nxd6+ {[%emt 0:00:21]} Rxd6 {[%emt 0:03:37]} 37. Qxf7 {[%emt 0:00:44]} Re2 {[%emt 0:02:31]} 38. Qc4+ {[%emt 0:00:32]} Nc5 {[%emt 0:09:36]} 39. Qxe2 {[%emt 0:00:25]} Nxb3 {[%emt 0:00:27]} 40. axb3 {[%emt 0:00:20]} Ra6 {[%emt 0:04:46]} 41. Qb2 {[%emt 0:12:23]} d3 {[%emt 0:01:45]} 42. Rxd3 {[%emt 0:06:30]} Rc6 {[%emt 0:01:17]} 43. Qd4 {[%emt 0:03:17]} Qe1+ {[%emt 0:01:35]} 44. Rd1 {[%emt 0:00:50]} Qe6 {[%emt 0:03:19]} 45. Qd8+ {[%emt 0:01:17]} Kb7 {[%emt 0:00:09]} 46. Qd7+ {[%emt 0:00:09]} Kb6 {[%emt 0:00:13]} 47. Qxe6 {[%emt 0:01:14]} Rxe6 {[%emt 0:00:02]} 48. g5 {[%emt 0:04:22]} fxg5 {[%emt 0:00:26]} 49. hxg5 {[%emt 0:00:50]} Re4 {[%emt 0:00:45]} 50. f5 {[%emt 0:02:50]} Rf4 {[%emt 0:00:39]} 51. f6 {[%emt 0:00:28]} Kc7 {[%emt 0:00:32]} 52. Rg1 {[%emt 0:00:34]} Kd7 {[%emt 0:00:17]} 53. g6 {[%emt 0:00:14]} 1-0

[Event "DLM Youth 2024"]
[Site "Tuebingen"]
[Date "2024.10.03"]
[Round "2"]
[White "Foksha, Mischa"]
[Black "Butenandt, Svenja"]
[Result "1/2-1/2"]
[ECO "B12"]
[WhiteElo "2078"]
[BlackElo "2121"]
[Annotator "NA RC"]
[PlyCount "57"]
[EventDate "2024.10.03"]
[EventType "team-swiss"]
[EventRounds "7"]
[EventCountry "GER"]
[SourceTitle "playchess.com"]
[Source "ChessBase"]
[SourceQuality "1"]
[TimeControl "40/5400+30:1800+30"]

1. e4 {[%emt 0:00:03]} c6 {[%emt 0:00:06]} 2. d4 {[%emt 0:00:05]} d5 {[%emt 0:00:04]} 3. e5 {[%emt 0:00:03]} Bf5 {[%emt 0:00:04]} 4. Nf3 {[%emt 0:00:05]} e6 {[%emt 0:00:07]} 5. Be2 {[%emt 0:00:03]} c5 {[%emt 0:00:06]} 6. Be3 {[%emt 0:00:05]} Qb6 {[%emt 0:00:09]} 7. O-O {[%emt 0:12:28]} Qxb2 {[%emt 0:05:57]} 8. c4 {[%emt 0:04:57]} dxc4 {[%emt 0:23:01]} 9. Bxc4 {[%emt 0:17:02]} Nc6 {[%emt 0:15:07]} 10. dxc5 {[%emt 0:04:37]} Nge7 {[%emt 0:13:06]} 11. Qb3 {[%emt 0:05:52]} Qxb3 {[%emt 0:01:39]} 12. axb3 {[%emt 0:00:06]} Bg4 {[%emt 0:03:46]} 13. Bb5 {[%emt 0:09:23]} O-O-O {[%emt 0:02:29]} 14. Nbd2 {[%emt 0:01:28]} Nd5 {[%emt 0:13:16]} 15. Bxc6 {[%emt 0:05:15]} Nxe3 {[%emt 0:01:11]} 16. Rfc1 {[%emt 0:06:58]} bxc6 {[%emt 0:01:57]} 17. fxe3 {[%emt 0:00:06]} Bxf3 {[%emt 0:03:34]} 18. Nxf3 {[%emt 0:00:07]} Kb7 {[%emt 0:00:06]} 19. Kf2 {[%emt 0:06:37]} Rd5 {[%emt 0:03:40]} 20. b4 {[%emt 0:01:11]} Be7 {[%emt 0:01:07]} 21. Ra3 {[%emt 0:05:12]} Ra8 {[%emt 0:01:50]} 22. e4 {[%emt 0:00:42]} Rd7 {[%emt 0:00:49]} 23. Ke3 {[%emt 0:03:39]} a6 {[%emt 0:01:47]} 24. Rca1 {[%emt 0:00:25]} h6 {[%emt 0:04:20]} 25. g3 {[%emt 0:03:28]} Bd8 {[%emt 0:01:17]} 26. Kf4 {[%emt 0:03:13]} Bc7 {[%emt 0:00:31]} 27. Kg4 {[%emt 0:01:37]} Rdd8 {[%emt 0:00:49]} 28. h4 {[%emt 0:00:49]} Rd7 {[%emt 0:00:52]} 29. Kh3 {[%emt 0:02:17]} 1/2-1/2

[Event "DLM Youth 2024"]
[Site "Tuebingen"]
[Date "2024.10.03"]
[Round "2"]
[White "Uhlmann, Tim"]
[Black "Walter, Richard"]
[Result "1-0"]
[ECO "B10"]
[WhiteElo "2067"]
[BlackElo "1958"]
[Annotator "NA RC"]
[PlyCount "119"]
[EventDate "2024.10.03"]
[EventType "team-swiss"]
[EventRounds "7"]
[EventCountry "GER"]
[SourceTitle "playchess.com"]
[Source "ChessBase"]
[SourceQuality "1"]
[TimeControl "40/5400+30:1800+30"]

1. e4 {[%emt 0:00:41]} c6 {[%emt 0:00:05]} 2. Nf3 {[%emt 0:00:04]} d5 {[%emt 0:00:04]} 3. d3 {[%emt 0:00:03]} dxe4 {[%emt 0:00:04]} 4. dxe4 {[%emt 0:00:04]} Qxd1+ {[%emt 0:00:06]} 5. Kxd1 {[%emt 0:00:03]} Nd7 {[%emt 0:00:05]} 6. Nfd2 {[%emt 0:01:07]} e5 {[%emt 0:00:13]} 7. Nc3 {[%emt 0:00:47]} Bd6 {[%emt 0:00:28]} 8. Nc4 {[%emt 0:01:10]} Bc7 {[%emt 0:00:06]} 9. a4 {[%emt 0:00:05]} a5 {[%emt 0:01:02]} 10. Be3 {[%emt 0:00:48]} Ne7 {[%emt 0:01:02]} 11. Bd3 {[%emt 0:01:22]} Ng6 {[%emt 0:00:58]} 12. g3 {[%emt 0:01:40]} O-O {[%emt 0:03:08]} 13. h4 {[%emt 0:01:40]} h5 {[%emt 0:04:04]} 14. Be2 {[%emt 0:09:53]} Nf6 {[%emt 0:01:21]} 15. Nb6 {[%emt 0:11:53]} Rb8 {[%emt 0:05:05]} 16. Nxc8 {[%emt 0:03:11]} Rfxc8 {[%emt 0:00:18]} 17. Bg5 {[%emt 0:00:18]} Ng4 {[%emt 0:01:15]} 18. Bxg4 {[%emt 0:04:22]} hxg4 {[%emt 0:00:08]} 19. h5 {[%emt 0:00:56]} Nf8 {[%emt 0:01:31]} 20. Rh4 {[%emt 0:03:33]} Nh7 {[%emt 0:05:12]} 21. Be3 {[%emt 0:06:08]} Bd8 {[%emt 0:03:58]} 22. Rxg4 {[%emt 0:01:16]} Nf6 {[%emt 0:01:27]} 23. Rh4 {[%emt 0:00:57]} b5 {[%emt 0:04:19]} 24. f3 {[%emt 0:06:46]} b4 {[%emt 0:01:55]} 25. Nb1 {[%emt 0:05:34]} Nd5 {[%emt 0:03:14]} 26. exd5 {[%emt 0:00:29]} Bxh4 {[%emt 0:00:07]} 27. gxh4 {[%emt 0:00:03]} cxd5 {[%emt 0:00:07]} 28. Nd2 {[%emt 0:01:34]} Rc6 {[%emt 0:01:02]} 29. Nb3 {[%emt 0:03:55]} Ra8 {[%emt 0:03:12]} 30. Rc1 {[%emt 0:03:44]} Rc4 {[%emt 0:03:36]} 31. Bf2 {[%emt 0:01:54]} Kh7 {[%emt 0:00:30]} 32. Kd2 {[%emt 0:06:17]} f6 {[%emt 0:08:21]} 33. Rg1 {[%emt 0:06:23]} Rac8 {[%emt 0:01:52]} 34. Na1 {[%emt 0:00:51]} Rf4 {[%emt 0:06:24]} 35. Ke2 {[%emt 0:04:17]} d4 {[%emt 0:01:29]} 36. Rc1 {[%emt 0:03:48]} b3 {[%emt 0:01:24]} 37. Nxb3 {[%emt 0:00:45]} d3+ {[%emt 0:00:09]} 38. cxd3 {[%emt 0:01:30]} Rb8 {[%emt 0:00:21]} 39. Nc5 {[%emt 0:04:00]} Rxb2+ {[%emt 0:00:26]} 40. Ke3 {[%emt 0:00:36]} Rd4 {[%emt 0:04:35]} 41. Bg3 {[%emt 0:12:58]} Rg2 {[%emt 0:02:01]} 42. Bf2 {[%emt 0:00:41]} Rb4 {[%emt 0:02:23]} 43. Be1 {[%emt 0:12:21]} Rbb2 {[%emt 0:02:13]} 44. d4 {[%emt 0:03:11]} Rbe2+ {[%emt 0:02:16]} 45. Kd3 {[%emt 0:00:18]} exd4 {[%emt 0:00:45]} 46. Kxd4 {[%emt 0:00:11]} Rg1 {[%emt 0:00:18]} 47. Nd3 {[%emt 0:01:55]} Ra2 {[%emt 0:02:54]} 48. Rc4 {[%emt 0:00:42]} Rf1 {[%emt 0:03:18]} 49. Ke3 {[%emt 0:02:01]} Ra3 {[%emt 0:00:18]} 50. Bxa5 {[%emt 0:00:26]} Rfa1 {[%emt 0:00:29]} 51. Bc3 {[%emt 0:04:57]} Rxa4 {[%emt 0:00:05]} 52. Rc7 {[%emt 0:00:50]} Ra7 {[%emt 0:00:06]} 53. Bxf6 {[%emt 0:00:10]} Re1+ {[%emt 0:01:24]} 54. Nxe1 {[%emt 0:00:06]} Rxc7 {[%emt 0:00:04]} 55. Bg5 {[%emt 0:00:07]} Kg8 {[%emt 0:00:40]} 56. Nd3 {[%emt 0:00:13]} Kf7 {[%emt 0:01:48]} 57. h6 {[%emt 0:00:19]} gxh6 {[%emt 0:01:40]} 58. Bxh6 {[%emt 0:00:04]} Kg6 {[%emt 0:00:05]} 59. Bg5 {[%emt 0:00:37]} Kh5 {[%emt 0:00:05]} 60. Nf4# {[%emt 0:00:06]} 1-0

[Event "DLM Youth 2024"]
[Site "Tuebingen"]
[Date "2024.10.03"]
[Round "2"]
[White "Liebold, Aaron"]
[Black "Hinrichs, Paul"]
[Result "0-1"]
[ECO "C50"]
[WhiteElo "2058"]
[BlackElo "2264"]
[Annotator "RC"]
[PlyCount "214"]
[EventDate "2024.10.03"]
[EventType "team-swiss"]
[EventRounds "7"]
[EventCountry "GER"]
[SourceTitle "playchess.com"]
[Source "ChessBase"]
[SourceQuality "1"]
[TimeControl "40/5400+30:1800+30"]

1. e4 {[%emt 0:00:03]} e5 {[%emt 0:00:16]} 2. Nf3 {[%emt 0:00:17]} Nc6 {[%emt 0:00:07]} 3. Bc4 {[%emt 0:00:20]} Nf6 {[%emt 0:00:12]} 4. d3 {[%emt 0:00:11]} Bc5 {[%emt 0:00:46]} 5. a4 {[%emt 0:00:39]} d6 {[%emt 0:01:54]} 6. c3 {[%emt 0:00:23]} a6 {[%emt 0:00:35]} 7. O-O {[%emt 0:01:42]} Ba7 {[%emt 0:02:52]} 8. Be3 {[%emt 0:00:53]} Bxe3 {[%emt 0:00:38]} 9. fxe3 {[%emt 0:00:03]} O-O {[%emt 0:00:24]} 10. Nbd2 {[%emt 0:06:08]} Ne7 {[%emt 0:01:50]} 11. Qc2 {[%emt 0:11:01]} Ng6 {[%emt 0:03:37]} 12. d4 {[%emt 0:03:37]} a5 {[%emt 0:02:42]} 13. Rfe1 {[%emt 0:09:12]} c6 {[%emt 0:03:58]} 14. Ba2 {[%emt 0:01:47]} b5 {[%emt 0:08:05]} 15. Nf1 {[%emt 0:22:44]} Qb6 {[%emt 0:09:55]} 16. Rad1 {[%emt 0:01:08]} b4 {[%emt 0:03:51]} 17. c4 {[%emt 0:02:42]} c5 {[%emt 0:00:34]} 18. h3 {[%emt 0:16:22]} b3 {[%emt 0:03:07]} 19. Qxb3 {[%emt 0:01:21]} Qxb3 {[%emt 0:00:13]} 20. Bxb3 {[%emt 0:00:03]} Rb8 {[%emt 0:02:38]} 21. N1d2 {[%emt 0:01:09]} Ba6 {[%emt 0:05:45]} 22. Rb1 {[%emt 0:04:40]} Rb4 {[%emt 0:02:47]} 23. Ba2 {[%emt 0:01:31]} Bb7 {[%emt 0:01:11]} 24. d5 {[%emt 0:04:32]} Rxa4 {[%emt 0:00:45]} 25. Bb3 {[%emt 0:00:09]} Rb4 {[%emt 0:00:04]} 26. Ra1 {[%emt 0:00:04]} Rd8 {[%emt 0:02:03]} 27. Rxa5 {[%emt 0:03:11]} Nxe4 {[%emt 0:01:03]} 28. Rea1 {[%emt 0:00:18]} Nf6 {[%emt 0:01:48]} 29. R1a4 {[%emt 0:02:53]} Rb6 {[%emt 0:00:12]} 30. Ra2 {[%emt 0:01:17]} Ne7 {[%emt 0:05:05]} 31. Ba4 {[%emt 0:02:14]} Rb8 {[%emt 0:02:59]} 32. e4 {[%emt 0:00:51]} Bc8 {[%emt 0:00:35]} 33. b3 {[%emt 0:01:48]} h6 {[%emt 0:07:06]} 34. Bb5 {[%emt 0:01:04]} Kf8 {[%emt 0:08:41]} 35. Ra7 {[%emt 0:00:44]} R6b7 {[%emt 0:01:32]} 36. Ra8 {[%emt 0:00:39]} Bd7 {[%emt 0:02:45]} 37. Bxd7 {[%emt 0:00:37]} Nxd7 {[%emt 0:00:04]} 38. R8a6 {[%emt 0:00:29]} Nc8 {[%emt 0:00:24]} 39. Kf2 {[%emt 0:00:32]} g6 {[%emt 0:00:43]} 40. g4 {[%emt 0:00:37]} Ke7 {[%emt 0:00:34]} 41. Ra1 {[%emt 0:12:09]} Ncb6 {[%emt 0:05:42]} 42. Ke2 {[%emt 0:05:04]} Rf8 {[%emt 0:00:09]} 43. Rf1 {[%emt 0:00:32]} Rbb8 {[%emt 0:01:51]} 44. Ra7 {[%emt 0:02:25]} Nc8 {[%emt 0:00:10]} 45. Ra3 {[%emt 0:00:45]} Nf6 {[%emt 0:01:40]} 46. Rf2 {[%emt 0:03:06]} Nh7 {[%emt 0:00:37]} 47. Kd1 {[%emt 0:04:11]} Nb6 {[%emt 0:00:44]} 48. Ra7+ {[%emt 0:00:10]} Nd7 {[%emt 0:00:06]} 49. Kc2 {[%emt 0:01:12]} Ra8 {[%emt 0:00:20]} 50. Rxa8 {[%emt 0:00:06]} Rxa8 {[%emt 0:00:02]} 51. Kb2 {[%emt 0:00:05]} Ndf6 {[%emt 0:01:57]} 52. Re2 {[%emt 0:01:50]} h5 {[%emt 0:01:42]} 53. g5 {[%emt 0:01:14]} Nd7 {[%emt 0:00:32]} 54. Nb1 {[%emt 0:01:26]} f6 {[%emt 0:01:41]} 55. gxf6+ {[%emt 0:00:12]} Ndxf6 {[%emt 0:00:45]} 56. Nc3 {[%emt 0:00:42]} g5 {[%emt 0:00:44]} 57. Rg2 {[%emt 0:00:33]} Rg8 {[%emt 0:01:09]} 58. Rg1 {[%emt 0:02:56]} Kf7 {[%emt 0:02:14]} 59. Kc2 {[%emt 0:00:41]} h4 {[%emt 0:01:20]} 60. Kd3 {[%emt 0:00:24]} Nh5 {[%emt 0:00:11]} 61. Nb5 {[%emt 0:00:20]} Nf4+ {[%emt 0:01:00]} 62. Ke3 {[%emt 0:00:02]} Rg6 {[%emt 0:00:04]} 63. Rh1 {[%emt 0:00:49]} Nf8 {[%emt 0:00:35]} 64. b4 {[%emt 0:01:08]} Nd7 {[%emt 0:00:39]} 65. bxc5 {[%emt 0:00:10]} Nxc5 {[%emt 0:00:02]} 66. Nc7 {[%emt 0:00:50]} Ke7 {[%emt 0:01:49]} 67. Rh2 {[%emt 0:00:29]} Rg8 {[%emt 0:00:48]} 68. Nb5 {[%emt 0:00:19]} Nd7 {[%emt 0:00:59]} 69. Rh1 {[%emt 0:00:22]} Rg6 {[%emt 0:02:37]} 70. Rg1 {[%emt 0:00:12]} Nxh3 {[%emt 0:02:17]} 71. Nxh4 {[%emt 0:00:06]} Rf6 {[%emt 0:00:02]} 72. Rh1 {[%emt 0:00:36]} gxh4 {[%emt 0:00:10]} 73. Rxh3 {[%emt 0:00:10]} Rf4 {[%emt 0:00:03]} 74. Nc3 {[%emt 0:01:46]} Nc5 {[%emt 0:00:03]} 75. Rf3 {[%emt 0:00:23]} Rg4 {[%emt 0:00:19]} 76. Rh3 {[%emt 0:00:39]} Kf6 {[%emt 0:02:00]} 77. Rf3+ {[%emt 0:00:14]} Kg6 {[%emt 0:00:02]} 78. Rf8 {[%emt 0:00:43]} Rg3+ {[%emt 0:00:55]} 79. Rf3 {[%emt 0:00:18]} Rg2 {[%emt 0:01:07]} 80. Nb5 {[%emt 0:00:32]} Nb7 {[%emt 0:02:36]} 81. Rf2 {[%emt 0:00:34]} Rxf2 {[%emt 0:03:14]} 82. Kxf2 {[%emt 0:00:01]} Kg5 {[%emt 0:00:14]} 83. Kf3 {[%emt 0:00:19]} h3 {[%emt 0:00:24]} 84. Kg3 {[%emt 0:00:25]} h2 {[%emt 0:00:06]} 85. Kxh2 {[%emt 0:00:08]} Kf4 {[%emt 0:00:04]} 86. Kg2 {[%emt 0:01:45]} Kxe4 {[%emt 0:00:17]} 87. Kf2 {[%emt 0:00:20]} Kd3 {[%emt 0:00:11]} 88. Na3 {[%emt 0:00:33]} Kd4 {[%emt 0:01:24]} 89. Ke2 {[%emt 0:00:32]} Na5 {[%emt 0:00:36]} 90. Nb5+ {[%emt 0:00:35]} Kc5 {[%emt 0:00:04]} 91. Kd3 {[%emt 0:00:13]} Nxc4 {[%emt 0:00:05]} 92. Nc7 {[%emt 0:00:39]} Nb6 {[%emt 0:00:37]} 93. Ke4 {[%emt 0:00:12]} Nd7 {[%emt 0:00:33]} 94. Na6+ {[%emt 0:00:57]} Kc4 {[%emt 0:00:25]} 95. Nc7 {[%emt 0:00:29]} Nf6+ {[%emt 0:00:19]} 96. Kf5 {[%emt 0:00:21]} Nxd5 {[%emt 0:01:25]} 97. Ne6 {[%emt 0:00:39]} Ne7+ {[%emt 0:01:15]} 98. Ke4 {[%emt 0:00:19]} Kb5 {[%emt 0:02:04]} 99. Ng5 {[%emt 0:00:28]} Kc5 {[%emt 0:00:13]} 100. Ne6+ {[%emt 0:00:43]} Kc6 {[%emt 0:00:09]} 101. Nd8+ {[%emt 0:00:10]} Kd7 {[%emt 0:00:33]} 102. Nf7 {[%emt 0:00:46]} Ke6 {[%emt 0:00:03]} 103. Ng5+ {[%emt 0:00:13]} Kf6 {[%emt 0:00:03]} 104. Nh7+ {[%emt 0:00:09]} Kg7 {[%emt 0:00:04]} 105. Ng5 {[%emt 0:00:05]} Kg6 {[%emt 0:00:03]} 106. Ne6 {[%emt 0:00:29]} Kf6 {[%emt 0:00:03]} 107. Nc7 {[%emt 0:00:18]} d5+ {[%emt 0:00:08]} 0-1

[Event "DLM Youth 2024"]
[Site "Tuebingen"]
[Date "2024.10.03"]
[Round "2"]
[White "Udelnov, Valentin"]
[Black "Goldmann, David"]
[Result "1/2-1/2"]
[ECO "C10"]
[WhiteElo "2045"]
[BlackElo "1969"]
[Annotator "NA RC"]
[PlyCount "69"]
[EventDate "2024.10.03"]
[EventType "team-swiss"]
[EventRounds "7"]
[EventCountry "GER"]
[SourceTitle "playchess.com"]
[Source "ChessBase"]
[SourceQuality "1"]
[TimeControl "40/5400+30:1800+30"]

1. e4 {[%emt 0:00:02]} e6 {[%emt 0:00:03]} 2. d4 {[%emt 0:00:04]} d5 {[%emt 0:00:03]} 3. Nd2 {[%emt 0:00:03]} dxe4 4. Nxe4 {[%emt 0:00:13]} Nd7 {[%emt 0:00:06]} 5. c4 {[%emt 0:04:10]} Ngf6 {[%emt 0:01:42]} 6. Nc3 {[%emt 0:00:13]} c5 {[%emt 0:01:37]} 7. d5 {[%emt 0:07:40]} exd5 {[%emt 0:00:21]} 8. cxd5 {[%emt 0:00:24]} Nb6 {[%emt 0:00:09]} 9. Bg5 {[%emt 0:00:53]} Bd6 {[%emt 0:03:00]} 10. Bb5+ {[%emt 0:21:52]} Bd7 {[%emt 0:00:14]} 11. Bxd7+ {[%emt 0:00:10]} Qxd7 {[%emt 0:00:37]} 12. Nge2 {[%emt 0:02:44]} Be5 {[%emt 0:00:37]} 13. O-O {[%emt 0:00:49]} Nfxd5 {[%emt 0:06:19]} 14. Ne4 {[%emt 0:05:19]} O-O {[%emt 0:01:20]} 15. Nxc5 {[%emt 0:06:48]} Bxh2+ {[%emt 0:02:50]} 16. Kxh2 {[%emt 0:02:15]} Qd6+ {[%emt 0:00:20]} 17. Kg1 {[%emt 0:04:59]} Qxc5 {[%emt 0:00:07]} 18. Rc1 {[%emt 0:00:48]} Qb4 {[%emt 0:02:59]} 19. Qd4 {[%emt 0:06:24]} Qxd4 {[%emt 0:02:12]} 20. Nxd4 {[%emt 0:00:01]} h6 {[%emt 0:00:48]} 21. Bh4 {[%emt 0:00:09]} Rac8 {[%emt 0:01:21]} 22. Rcd1 {[%emt 0:01:59]} f5 {[%emt 0:01:06]} 23. Rfe1 {[%emt 0:05:25]} g5 {[%emt 0:05:19]} 24. Bg3 {[%emt 0:00:05]} f4 {[%emt 0:00:14]} 25. Bh2 {[%emt 0:00:02]} Rfe8 {[%emt 0:08:15]} 26. Kf1 {[%emt 0:01:45]} Rxe1+ {[%emt 0:00:35]} 27. Kxe1 {[%emt 0:00:02]} Kf7 {[%emt 0:01:48]} 28. Bg1 {[%emt 0:02:23]} Nb4 {[%emt 0:01:10]} 29. Nf5 {[%emt 0:09:17]} Re8+ {[%emt 0:04:46]} 30. Kf1 {[%emt 0:00:23]} Kg6 {[%emt 0:00:19]} 31. g4 {[%emt 0:01:49]} fxg3 {[%emt 0:02:30]} 32. Nxg3 {[%emt 0:00:08]} Re6 {[%emt 0:02:59]} 33. f3 {[%emt 0:02:50]} N4d5 {[%emt 0:09:20]} 34. Bxb6 Nxb6 35. Rd8 {[%emt 0:00:01]} 1/2-1/2

[Event "DLM Youth 2024"]
[Site "Tuebingen"]
[Date "2024.10.03"]
[Round "2"]
[White "Voigt, Anastasia"]
[Black "Wartenberg, Alexander"]
[Result "1/2-1/2"]
[ECO "B45"]
[WhiteElo "2037"]
[BlackElo "1857"]
[Annotator "NA RC"]
[PlyCount "109"]
[EventDate "2024.10.03"]
[EventType "team-swiss"]
[EventRounds "7"]
[EventCountry "GER"]
[SourceTitle "playchess.com"]
[Source "ChessBase"]
[SourceQuality "1"]
[TimeControl "40/5400+30:1800+30"]

1. e4 {[%emt 0:00:02]} c5 {[%emt 0:00:01]} 2. Nf3 {[%emt 0:00:04]} e6 {[%emt 0:00:12]} 3. d4 {[%emt 0:00:04]} cxd4 {[%emt 0:00:10]} 4. Nxd4 {[%emt 0:00:03]} Nf6 {[%emt 0:00:04]} 5. Nc3 {[%emt 0:00:04]} Nc6 {[%emt 0:00:21]} 6. Ndb5 {[%emt 0:00:13]} Bc5 {[%emt 0:00:34]} 7. Bf4 {[%emt 0:06:09]} e5 {[%emt 0:11:48]} 8. Bg5 {[%emt 0:09:25]} d6 {[%emt 0:14:49]} 9. Bxf6 {[%emt 0:08:14]} Qxf6 {[%emt 0:07:02]} 10. Qd2 {[%emt 0:00:59]} O-O {[%emt 0:04:33]} 11. Nc7 {[%emt 0:02:03]} Rb8 {[%emt 0:01:59]} 12. N7d5 {[%emt 0:01:50]} Qd8 {[%emt 0:01:51]} 13. Bd3 {[%emt 0:02:21]} a6 {[%emt 0:02:14]} 14. O-O {[%emt 0:01:37]} Qh4 {[%emt 0:01:41]} 15. Ne3 {[%emt 0:02:36]} Qg5 {[%emt 0:11:42]} 16. Ncd5 {[%emt 0:12:56]} Nd4 {[%emt 0:09:11]} 17. Kh1 {[%emt 0:05:19]} Ne6 {[%emt 0:04:26]} 18. b4 {[%emt 0:05:19]} Ba7 {[%emt 0:01:01]} 19. Rfd1 {[%emt 0:01:36]} Nf4 {[%emt 0:03:14]} 20. f3 {[%emt 0:04:01]} Be6 {[%emt 0:05:42]} 21. Nxf4 {[%emt 0:12:53]} exf4 {[%emt 0:01:14]} 22. Nc4 {[%emt 0:04:32]} Bd4 {[%emt 0:06:47]} 23. c3 {[%emt 0:01:33]} Be5 {[%emt 0:00:38]} 24. Nxe5 {[%emt 0:03:19]} dxe5 {[%emt 0:00:27]} 25. Qe2 {[%emt 0:01:24]} h5 {[%emt 0:02:35]} 26. Bc4 {[%emt 0:01:01]} Qe7 {[%emt 0:00:50]} 27. Bd5 {[%emt 0:02:33]} g5 {[%emt 0:01:20]} 28. a3 {[%emt 0:03:40]} Kg7 {[%emt 0:01:53]} 29. c4 {[%emt 0:00:39]} g4 {[%emt 0:00:22]} 30. Bxe6 {[%emt 0:01:32]} Qxe6 {[%emt 0:00:24]} 31. Rd5 {[%emt 0:00:23]} Rbd8 {[%emt 0:02:15]} 32. Rad1 {[%emt 0:00:31]} Rxd5 {[%emt 0:00:24]} 33. exd5 {[%emt 0:01:34]} Qf5 {[%emt 0:00:37]} 34. Re1 {[%emt 0:01:48]} f6 {[%emt 0:00:20]} 35. Qe4 {[%emt 0:00:31]} Qxe4 {[%emt 0:01:12]} 36. Rxe4 {[%emt 0:00:05]} Kf7 {[%emt 0:00:49]} 37. Re1 {[%emt 0:02:01]} Ke7 {[%emt 0:00:54]} 38. c5 {[%emt 0:00:23]} Rd8 {[%emt 0:00:37]} 39. Rd1 {[%emt 0:00:16]} f5 {[%emt 0:01:07]} 40. Kg1 {[%emt 0:01:32]} Kf6 {[%emt 0:00:52]} 41. a4 {[%emt 0:31:58]} e4 {[%emt 0:31:25]} 42. b5 {[%emt 0:01:14]} axb5 {[%emt 0:00:00]} 43. axb5 {[%emt 0:00:00]} Ke5 {[%emt 0:00:00]} 44. d6 {[%emt 0:00:00]} Ke6 {[%emt 0:00:00]} 45. Kf2 {[%emt 0:00:00]} h4 {[%emt 0:00:00]} 46. h3 {[%emt 0:00:00]} e3+ {[%emt 0:00:00]} 47. Ke2 {[%emt 0:00:00]} gxh3 {[%emt 0:00:00]} 48. gxh3 {[%emt 0:00:00]} Kd7 {[%emt 0:00:27]} 49. Rd4 {[%emt 0:00:00]} Rc8 {[%emt 0:01:07]} 50. Rd5 {[%emt 0:00:00]} Rf8 {[%emt 0:00:38]} 51. Re5 {[%emt 0:00:00]} Rf7 {[%emt 0:00:38]} 52. Kf1 {[%emt 0:01:18]} b6 {[%emt 0:02:07]} 53. Re7+ {[%emt 0:02:44]} Rxe7 {[%emt 0:00:09]} 54. dxe7 {[%emt 0:00:04]} Kxe7 {[%emt 0:00:05]} 55. c6 {[%emt 0:00:33]} 1/2-1/2